[Event "Early-Titled-Tuesday-Blitz-June-18-2024"]
[Site "Chess.com"]
[Date "2024.06.18"]
[Round "2"]
[White "margarita_2703"]
[Black "VaglioSagan"]
[Result "0-1"]
[WhiteElo "2229"]
[BlackElo "2488"]
[TimeControl "180+1"]
[EndTime "8:20:33 PDT"]
[Termination "VaglioSagan won on time"]

1. e4 {[%clk 0:03:00.9]} 1... c6 {[%clk 0:02:59.9]} 2. d3 {[%clk 0:02:57.2]}
2... d5 {[%clk 0:02:58.3]} 3. Nd2 {[%clk 0:02:58.1]} 3... e5 {[%clk 0:02:57.4]}
4. Ngf3 {[%clk 0:02:57.7]} 4... Nd7 {[%clk 0:02:56.9]} 5. g3 {[%clk 0:02:51.4]}
5... Bd6 {[%clk 0:02:55.9]} 6. Bg2 {[%clk 0:02:51.2]} 6... Ne7 {[%clk
0:02:55.8]} 7. O-O {[%clk 0:02:51.8]} 7... O-O {[%clk 0:02:55.9]} 8. a4 {[%clk
0:02:48.6]} 8... Nf6 {[%clk 0:02:54.6]} 9. c3 {[%clk 0:02:44.1]} 9... h6 {[%clk
0:02:54.3]} 10. Re1 {[%clk 0:02:43]} 10... Bg4 {[%clk 0:02:53.4]} 11. Qc2 {[%clk
0:02:42.6]} 11... Qc7 {[%clk 0:02:41.5]} 12. h3 {[%clk 0:02:40.7]} 12... Be6
{[%clk 0:02:39.8]} 13. Nh4 {[%clk 0:02:38]} 13... g5 {[%clk 0:02:37.5]} 14. Nhf3
{[%clk 0:02:32.7]} 14... Ng6 {[%clk 0:02:37.8]} 15. Nf1 {[%clk 0:02:29]} 15...
Qd7 {[%clk 0:02:23.6]} 16. h4 {[%clk 0:02:27.1]} 16... g4 {[%clk 0:02:14]} 17.
N3h2 {[%clk 0:02:25.6]} 17... h5 {[%clk 0:02:11.8]} 18. f3 {[%clk 0:02:21.1]}
18... gxf3 {[%clk 0:02:11.5]} 19. Nxf3 {[%clk 0:02:22]} 19... Bg4 {[%clk
0:02:05.9]} 20. Ng5 {[%clk 0:02:20.8]} 20... Rad8 {[%clk 0:01:57.5]} 21. b4
{[%clk 0:02:15.4]} 21... dxe4 {[%clk 0:01:35.6]} 22. dxe4 {[%clk 0:02:12.9]}
22... Nh7 {[%clk 0:01:33.7]} 23. Be3 {[%clk 0:02:08.7]} 23... Nxg5 {[%clk
0:01:33.4]} 24. Bxg5 {[%clk 0:02:09.6]} 24... Be7 {[%clk 0:01:33.5]} 25. Bxe7
{[%clk 0:02:07.1]} 25... Qxe7 {[%clk 0:01:34.4]} 26. Ne3 {[%clk 0:02:08]} 26...
Rd7 {[%clk 0:01:31]} 27. Nxg4 {[%clk 0:02:07.7]} 27... hxg4 {[%clk 0:01:31.9]}
28. Rad1 {[%clk 0:02:07.9]} 28... Rfd8 {[%clk 0:01:31.8]} 29. Qe2 {[%clk
0:02:07.9]} 29... Qe6 {[%clk 0:01:32]} 30. h5 {[%clk 0:02:04.9]} 30... Nf8
{[%clk 0:01:28.4]} 31. Rxd7 {[%clk 0:02:04.1]} 31... Qxd7 {[%clk 0:01:28.2]} 32.
Qe3 {[%clk 0:02:03.7]} 32... Ne6 {[%clk 0:01:27]} 33. Qxa7 {[%clk 0:02:02.9]}
33... Qd2 {[%clk 0:01:26.6]} 34. Qe3 {[%clk 0:02:02.7]} 34... Qc2 {[%clk
0:01:14.6]} 35. Qe2 {[%clk 0:01:58.6]} 35... Qxe2 {[%clk 0:00:51.6]} 36. Rxe2
{[%clk 0:01:59.5]} 36... Rd3 {[%clk 0:00:52.3]} 37. Rc2 {[%clk 0:01:51.7]} 37...
Rxg3 {[%clk 0:00:50.7]} 38. Kf2 {[%clk 0:01:50.2]} 38... Rd3 {[%clk 0:00:51]}
39. a5 {[%clk 0:01:46.8]} 39... Nf4 {[%clk 0:00:49.1]} 40. Bf1 {[%clk 0:01:47]}
40... Rf3+ {[%clk 0:00:49.2]} 41. Kg1 {[%clk 0:01:47.4]} 41... Rg3+ {[%clk
0:00:49.6]} 42. Kf2 {[%clk 0:01:47.5]} 42... Rf3+ {[%clk 0:00:50.1]} 43. Kg1
{[%clk 0:01:47.7]} 43... Nxh5 {[%clk 0:00:50.5]} 44. Rd2 {[%clk 0:01:38.9]}
44... Nf4 {[%clk 0:00:49.4]} 45. Rd7 {[%clk 0:01:37.5]} 45... Rxc3 {[%clk
0:00:49]} 46. Rxb7 {[%clk 0:01:37.2]} 46... g3 {[%clk 0:00:48]} 47. a6 {[%clk
0:01:33.6]} 47... Ra3 {[%clk 0:00:48.3]} 48. a7 {[%clk 0:01:31.4]} 48... Kg7
{[%clk 0:00:48.8]} 49. b5 {[%clk 0:01:11.1]} 49... cxb5 {[%clk 0:00:48.9]} 50.
Rxb5 {[%clk 0:01:11.2]} 50... Ra1 {[%clk 0:00:34.2]} 51. Rxe5 {[%clk 0:01:08.8]}
51... g2 {[%clk 0:00:33.6]} 52. Rg5+ {[%clk 0:01:08.2]} 52... Kh6 {[%clk
0:00:33.3]} 53. Rxg2 {[%clk 0:01:00.1]} 53... Nxg2 {[%clk 0:00:34.2]} 54. Kxg2
{[%clk 0:01:00.6]} 54... Rxa7 {[%clk 0:00:34.6]} 55. Bc4 {[%clk 0:01:00.3]}
55... f6 {[%clk 0:00:35.2]} 56. Bd5 {[%clk 0:00:58.9]} 56... Kg5 {[%clk
0:00:35.7]} 57. Kf3 {[%clk 0:00:58.2]} 57... Ra3+ {[%clk 0:00:36.1]} 58. Kf2
{[%clk 0:00:57.2]} 58... Kf4 {[%clk 0:00:37]} 59. Ke2 {[%clk 0:00:56]} 59... Ke5
{[%clk 0:00:36.7]} 60. Kf2 {[%clk 0:00:55.5]} 60... f5 {[%clk 0:00:32.7]} 61.
Bc6 {[%clk 0:00:47.5]} 61... fxe4 {[%clk 0:00:32]} 62. Ke2 {[%clk 0:00:46.7]}
62... Kf4 {[%clk 0:00:32]} 63. Bd5 {[%clk 0:00:45.3]} 63... Rh3 {[%clk 0:00:29]}
64. Bc6 {[%clk 0:00:42.9]} 64... Rh2+ {[%clk 0:00:29.1]} 65. Kf1 {[%clk
0:00:26.7]} 65... e3 {[%clk 0:00:26]} 66. Ke1 {[%clk 0:00:18]} 66... Rc2 {[%clk
0:00:19.5]} 67. Bd5 {[%clk 0:00:17.9]} 67... Rd2 {[%clk 0:00:19]} 68. Bh1 {[%clk
0:00:15.6]} 68... Ke5 {[%clk 0:00:18.8]} 69. Bc6 {[%clk 0:00:15.6]} 69... Kd4
{[%clk 0:00:19.4]} 70. Bd7 {[%clk 0:00:12.5]} 70... Kc3 {[%clk 0:00:18.2]} 71.
Bf5 {[%clk 0:00:12.1]} 71... Ra2 {[%clk 0:00:18.4]} 72. Bg6 {[%clk 0:00:11.9]}
72... e2 {[%clk 0:00:14.9]} 73. Bf5 {[%clk 0:00:09.5]} 73... Kd4 {[%clk
0:00:14.6]} 74. Bg6 {[%clk 0:00:07.1]} 74... Ke3 {[%clk 0:00:13.9]} 75. Bb1
{[%clk 0:00:07]} 75... Rb2 {[%clk 0:00:11.7]} 76. Bg6 {[%clk 0:00:05.8]} 76...
Rd2 {[%clk 0:00:09.5]} 77. Bc2 {[%clk 0:00:05.8]} 77... Rd6 {[%clk 0:00:09.9]}
78. Bf5 {[%clk 0:00:03.5]} 78... Ra6 {[%clk 0:00:09.3]} 79. Bb1 {[%clk
0:00:02.9]} 79... Ra5 {[%clk 0:00:09.3]} 80. Ba2 {[%clk 0:00:01]} 80... Rc5
{[%clk 0:00:08.4]} 81. Bc4 {[%clk 0:00:01.1]} 81... Rg5 {[%clk 0:00:08.5]} 82.
Bxe2 {[%clk 0:00:01]} 82... Rg1+ {[%clk 0:00:08.9]} 83. Bf1 {[%clk 0:00:01.9]}
83... Rh1 {[%clk 0:00:09.5]} 0-1

[Event "Early-Titled-Tuesday-Blitz-June-18-2024"]
[Site "Chess.com"]
[Date "2024.06.18"]
[Round "2"]
[White "chezzgirl04"]
[Black "pavelalexandru07"]
[Result "1-0"]
[WhiteElo "2206"]
[BlackElo "2454"]
[TimeControl "180+1"]
[EndTime "8:20:40 PDT"]
[Termination "chezzgirl04 won by resignation"]

1. e4 {[%clk 0:02:55.3]} 1... c5 {[%clk 0:02:58.3]} 2. Nf3 {[%clk 0:02:54.3]}
2... d6 {[%clk 0:02:57.4]} 3. d4 {[%clk 0:02:52]} 3... cxd4 {[%clk 0:02:56.7]}
4. Nxd4 {[%clk 0:02:48.6]} 4... Nf6 {[%clk 0:02:55.4]} 5. Nc3 {[%clk 0:02:47.9]}
5... a6 {[%clk 0:02:52]} 6. Bc4 {[%clk 0:02:46]} 6... e6 {[%clk 0:02:50.8]} 7.
Bb3 {[%clk 0:02:45.3]} 7... Nbd7 {[%clk 0:02:49.6]} 8. O-O {[%clk 0:02:45.3]}
8... b5 {[%clk 0:02:49.4]} 9. f4 {[%clk 0:02:43.8]} 9... Bb7 {[%clk 0:02:40]}
10. f5 {[%clk 0:02:42.4]} 10... e5 {[%clk 0:02:38.8]} 11. Nf3 {[%clk 0:02:41.4]}
11... h6 {[%clk 0:02:24.1]} 12. Re1 {[%clk 0:02:31]} 12... Be7 {[%clk
0:02:23.7]} 13. Bd5 {[%clk 0:02:11.4]} 13... Qc7 {[%clk 0:02:15.7]} 14. Bxb7
{[%clk 0:02:10.5]} 14... Qxb7 {[%clk 0:02:16.6]} 15. Nd5 {[%clk 0:02:09.9]}
15... Nxd5 {[%clk 0:02:16.3]} 16. exd5 {[%clk 0:02:10.2]} 16... O-O {[%clk
0:02:09.4]} 17. Be3 {[%clk 0:01:56.2]} 17... Nf6 {[%clk 0:02:08.5]} 18. a4
{[%clk 0:01:47.4]} 18... Nxd5 {[%clk 0:02:06.4]} 19. Bf2 {[%clk 0:01:47.4]}
19... Nf4 {[%clk 0:01:47.3]} 20. Be3 {[%clk 0:01:29.8]} 20... Nd5 {[%clk
0:01:43.5]} 21. Bd2 {[%clk 0:01:28.4]} 21... Rfe8 {[%clk 0:01:25.6]} 22. Qc1
{[%clk 0:01:14.8]} 22... Bf8 {[%clk 0:01:20.4]} 23. b3 {[%clk 0:01:08.3]} 23...
Rac8 {[%clk 0:01:18.5]} 24. axb5 {[%clk 0:01:05.7]} 24... axb5 {[%clk
0:01:18.6]} 25. c4 {[%clk 0:01:01.1]} 25... Nb6 {[%clk 0:01:11.4]} 26. f6 {[%clk
0:00:59.2]} 26... gxf6 {[%clk 0:00:50.5]} 27. Bxh6 {[%clk 0:00:55.7]} 27... bxc4
{[%clk 0:00:49.5]} 28. Nh4 {[%clk 0:00:26.2]} 28... cxb3 {[%clk 0:00:36.8]} 29.
Qe3 {[%clk 0:00:24.5]} 29... Rc2 {[%clk 0:00:20.5]} 30. Bxf8 {[%clk 0:00:15.5]}
30... Kxf8 {[%clk 0:00:19.8]} 31. Qh6+ {[%clk 0:00:11.1]} 31... Ke7 {[%clk
0:00:20]} 32. Nf5+ {[%clk 0:00:11.3]} 32... Kd7 {[%clk 0:00:20.5]} 33. Qg7
{[%clk 0:00:10.3]} 33... Qd5 {[%clk 0:00:15.5]} 34. Rad1 {[%clk 0:00:08.6]}
34... Qc5+ {[%clk 0:00:15.1]} 35. Kh1 {[%clk 0:00:08.8]} 35... Qf2 {[%clk
0:00:09.3]} 36. Qxf7+ {[%clk 0:00:08.2]} 36... Kc8 {[%clk 0:00:07.1]} 37. Qxe8+
{[%clk 0:00:08.1]} 37... Kb7 {[%clk 0:00:07.4]} 38. Qf7+ {[%clk 0:00:06.9]}
38... Ka6 {[%clk 0:00:06.4]} 39. Ra1+ {[%clk 0:00:06.9]} 39... Ra2 {[%clk
0:00:05.5]} 40. Rxa2+ {[%clk 0:00:06.7]} 40... bxa2 {[%clk 0:00:06.3]} 41. Ra1
{[%clk 0:00:06.5]} 41... Kb5 {[%clk 0:00:02.6]} 42. Qb3+ {[%clk 0:00:06.2]}
42... Kc6 {[%clk 0:00:02.5]} 43. Qc3+ {[%clk 0:00:05.4]} 43... Kd7 {[%clk
0:00:02.5]} 44. Qe1 {[%clk 0:00:04.8]} 44... Qxf5 {[%clk 0:00:02.5]} 45. Rxa2
{[%clk 0:00:05.1]} 45... d5 {[%clk 0:00:03]} 46. Ra7+ {[%clk 0:00:04.6]} 46...
Kd6 {[%clk 0:00:02.2]} 47. h3 {[%clk 0:00:04.7]} 47... Qe4 {[%clk 0:00:02]} 48.
Qb1 {[%clk 0:00:03.2]} 48... Qc4 {[%clk 0:00:01.6]} 49. Qg1 {[%clk 0:00:01.6]}
49... Qc6 {[%clk 0:00:02.5]} 50. Ra6 {[%clk 0:00:01.6]} 50... Kc7 {[%clk
0:00:03.2]} 51. Rxb6 {[%clk 0:00:01.2]} 51... Qxb6 {[%clk 0:00:03.3]} 52. Qxb6+
{[%clk 0:00:01.8]} 52... Kxb6 {[%clk 0:00:04.2]} 53. h4 {[%clk 0:00:02.3]} 53...
d4 {[%clk 0:00:04.8]} 54. Kg1 {[%clk 0:00:02.9]} 54... d3 {[%clk 0:00:05.2]} 55.
Kf2 {[%clk 0:00:03.3]} 55... Kc5 {[%clk 0:00:04.8]} 56. Ke3 {[%clk 0:00:03.7]}
56... Kc4 {[%clk 0:00:05.1]} 57. Kd2 {[%clk 0:00:03.6]} 57... e4 {[%clk
0:00:05.7]} 58. h5 {[%clk 0:00:04.1]} 58... Kd4 {[%clk 0:00:06.1]} 59. h6 {[%clk
0:00:04.4]} 59... e3+ {[%clk 0:00:06.8]} 60. Kd1 {[%clk 0:00:04.2]} 60... Kc3
{[%clk 0:00:07.2]} 61. h7 {[%clk 0:00:04.4]} 61... e2+ {[%clk 0:00:07.4]} 62.
Ke1 {[%clk 0:00:04.7]} 62... Kc2 {[%clk 0:00:07.6]} 63. h8=Q {[%clk 0:00:04]}
63... d2+ {[%clk 0:00:08.1]} 64. Kxe2 {[%clk 0:00:04.6]} 64... d1=Q+ {[%clk
0:00:08.8]} 65. Ke3 {[%clk 0:00:05]} 65... Qd2+ {[%clk 0:00:08.8]} 66. Kf3
{[%clk 0:00:05.3]} 66... Qd3+ {[%clk 0:00:08.9]} 67. Kf2 {[%clk 0:00:05.7]}
67... Qd4+ {[%clk 0:00:09.1]} 68. Kg3 {[%clk 0:00:06.2]} 68... Qe4 {[%clk
0:00:09.3]} 69. Qxf6 {[%clk 0:00:05.9]} 69... Qe3+ {[%clk 0:00:09.6]} 70. Qf3
{[%clk 0:00:06.2]} 70... Qe5+ {[%clk 0:00:09.4]} 71. Qf4 {[%clk 0:00:06.6]}
71... Qc3+ {[%clk 0:00:08.2]} 72. Kg4 {[%clk 0:00:06.3]} 72... Qg7+ {[%clk
0:00:07.9]} 73. Kf3 {[%clk 0:00:06.4]} 73... Qc3+ {[%clk 0:00:07.8]} 74. Qe3
{[%clk 0:00:06.6]} 74... Qg7 {[%clk 0:00:07.8]} 75. Qe2+ {[%clk 0:00:06.6]}
75... Kc3 {[%clk 0:00:07.7]} 76. Qe1+ {[%clk 0:00:06.8]} 76... Kd3 {[%clk
0:00:07.6]} 77. Qd1+ {[%clk 0:00:06.9]} 77... Kc4 {[%clk 0:00:07.5]} 78. Qe2+
{[%clk 0:00:07.1]} 78... Kd5 {[%clk 0:00:07.6]} 79. Qe4+ {[%clk 0:00:07.2]}
79... Kd6 {[%clk 0:00:07.8]} 80. g4 {[%clk 0:00:07.6]} 80... Qc3+ {[%clk
0:00:05.6]} 81. Qe3 {[%clk 0:00:07.9]} 81... Qc6+ {[%clk 0:00:05.7]} 82. Kg3
{[%clk 0:00:07.9]} 82... Qc4 {[%clk 0:00:02]} 83. Qf4+ {[%clk 0:00:08]} 83...
Qxf4+ {[%clk 0:00:02]} 84. Kxf4 {[%clk 0:00:08.1]} 84... Ke6 {[%clk 0:00:02.9]}
85. Kg5 {[%clk 0:00:08.1]} 85... Kf7 {[%clk 0:00:03.7]} 86. Kh6 {[%clk
0:00:08.6]} 86... Kg8 {[%clk 0:00:04.6]} 87. Kg6 {[%clk 0:00:08.9]} 87... Kf8
{[%clk 0:00:05.5]} 88. Kh7 {[%clk 0:00:09]} 1-0

[Event "Early-Titled-Tuesday-Blitz-June-18-2024"]
[Site "Chess.com"]
[Date "2024.06.18"]
[Round "2"]
[White "Ordekalog"]
[Black "klimkoj"]
[Result "0-1"]
[WhiteElo "2618"]
[BlackElo "2894"]
[TimeControl "180+1"]
[EndTime "8:22:07 PDT"]
[Termination "klimkoj won on time"]

1. e4 {[%clk 0:03:00.9]} 1... c5 {[%clk 0:02:59.2]} 2. d3 {[%clk 0:03:00]} 2...
g6 {[%clk 0:02:55.4]} 3. g3 {[%clk 0:02:59.3]} 3... Bg7 {[%clk 0:02:55.7]} 4.
Bg2 {[%clk 0:02:59.1]} 4... e6 {[%clk 0:02:53.2]} 5. f4 {[%clk 0:02:58.8]} 5...
Ne7 {[%clk 0:02:53.7]} 6. Nf3 {[%clk 0:02:58.5]} 6... O-O {[%clk 0:02:52.7]} 7.
c3 {[%clk 0:02:58.1]} 7... Nbc6 {[%clk 0:02:52.3]} 8. Be3 {[%clk 0:02:56.6]}
8... b6 {[%clk 0:02:46.6]} 9. Bf2 {[%clk 0:02:55.8]} 9... d5 {[%clk 0:02:47.1]}
10. e5 {[%clk 0:02:55.7]} 10... f6 {[%clk 0:02:38.3]} 11. exf6 {[%clk
0:02:51.7]} 11... Bxf6 {[%clk 0:02:37.4]} 12. O-O {[%clk 0:02:52.1]} 12... e5
{[%clk 0:02:33.7]} 13. fxe5 {[%clk 0:02:49.3]} 13... Nxe5 {[%clk 0:02:31.1]} 14.
Nxe5 {[%clk 0:02:48.5]} 14... Bxe5 {[%clk 0:02:31.6]} 15. Nd2 {[%clk 0:02:44]}
15... Bg7 {[%clk 0:02:24.4]} 16. Qb3 {[%clk 0:02:34.7]} 16... Be6 {[%clk
0:02:19.3]} 17. Rae1 {[%clk 0:02:33.1]} 17... Bf7 {[%clk 0:02:19.8]} 18. Qa4
{[%clk 0:02:30.4]} 18... Nf5 {[%clk 0:02:08.6]} 19. Nf3 {[%clk 0:02:23.8]} 19...
d4 {[%clk 0:02:04.8]} 20. c4 {[%clk 0:02:21.8]} 20... Be8 {[%clk 0:01:58.6]} 21.
Qd1 {[%clk 0:02:18]} 21... Bc6 {[%clk 0:01:58.7]} 22. g4 {[%clk 0:02:01.7]}
22... Ne3 {[%clk 0:01:48.7]} 23. Bxe3 {[%clk 0:02:01.1]} 23... dxe3 {[%clk
0:01:49.6]} 24. Rxe3 {[%clk 0:02:01.4]} 24... Bxb2 {[%clk 0:01:07.5]} 25. Kh1
{[%clk 0:01:58.9]} 25... Qd6 {[%clk 0:01:05.5]} 26. Qe2 {[%clk 0:01:50.6]} 26...
Rae8 {[%clk 0:00:58.4]} 27. Rxe8 {[%clk 0:01:46.8]} 27... Rxe8 {[%clk
0:00:57.4]} 28. Qxb2 {[%clk 0:01:46.8]} 28... Qxd3 {[%clk 0:00:57.7]} 29. Qf6
{[%clk 0:01:39.6]} 29... Be4 {[%clk 0:00:46.2]} 30. Ng5 {[%clk 0:00:40.3]} 30...
Bxg2+ {[%clk 0:00:46]} 31. Kxg2 {[%clk 0:00:40.7]} 31... Qxc4 {[%clk 0:00:41.8]}
32. h3 {[%clk 0:00:17.3]} 32... Qxa2+ {[%clk 0:00:39]} 33. Rf2 {[%clk
0:00:16.7]} 33... Qd5+ {[%clk 0:00:39.2]} 34. Kg3 {[%clk 0:00:12.3]} 34... Qe5+
{[%clk 0:00:35.9]} 35. Qxe5 {[%clk 0:00:11.4]} 35... Rxe5 {[%clk 0:00:36.8]} 36.
h4 {[%clk 0:00:09.5]} 36... Re7 {[%clk 0:00:34.9]} 37. Rd2 {[%clk 0:00:08.9]}
37... h6 {[%clk 0:00:33.6]} 38. Rd8+ {[%clk 0:00:08.6]} 38... Kg7 {[%clk
0:00:34.3]} 39. Nf3 {[%clk 0:00:09]} 39... Rc7 {[%clk 0:00:32.2]} 40. Ne5 {[%clk
0:00:08]} 40... c4 {[%clk 0:00:32.8]} 41. h5 {[%clk 0:00:04.2]} 41... gxh5
{[%clk 0:00:30.9]} 42. gxh5 {[%clk 0:00:05.1]} 42... c3 {[%clk 0:00:31.5]} 43.
Nd3 {[%clk 0:00:05.3]} 43... c2 {[%clk 0:00:28.8]} 44. Nc1 {[%clk 0:00:05]}
44... Kf6 {[%clk 0:00:29.4]} 45. Kf4 {[%clk 0:00:04.9]} 45... Rc4+ {[%clk
0:00:29.4]} 46. Ke3 {[%clk 0:00:04.2]} 46... Kg5 {[%clk 0:00:28.1]} 47. Rd5+
{[%clk 0:00:04.2]} 47... Kg4 {[%clk 0:00:26.8]} 48. Kd3 {[%clk 0:00:05.1]} 48...
Rc7 {[%clk 0:00:26.5]} 49. Kd2 {[%clk 0:00:03.4]} 49... a5 {[%clk 0:00:24.4]}
50. Nd3 {[%clk 0:00:03.2]} 50... a4 {[%clk 0:00:22.3]} 51. Kc1 {[%clk
0:00:03.4]} 51... a3 {[%clk 0:00:22.4]} 52. Nb4 {[%clk 0:00:03.9]} 52... Rc4
{[%clk 0:00:20.8]} 53. Na2 {[%clk 0:00:02.6]} 53... Rc6 {[%clk 0:00:16.7]} 54.
Rb5 {[%clk 0:00:02.9]} 54... Kh4 {[%clk 0:00:14.1]} 55. Nb4 {[%clk 0:00:02.9]}
55... Rc5 {[%clk 0:00:12.7]} 56. Rxb6 {[%clk 0:00:02.8]} 56... Kxh5 {[%clk
0:00:11.5]} 57. Nxc2 {[%clk 0:00:02.3]} 57... a2 {[%clk 0:00:11.8]} 58. Ra6
{[%clk 0:00:02.9]} 58... Kg4 {[%clk 0:00:11.7]} 59. Rxa2 {[%clk 0:00:02.8]}
59... h5 {[%clk 0:00:12.6]} 60. Ra4+ {[%clk 0:00:02.9]} 60... Kg3 {[%clk
0:00:13.3]} 61. Kd2 {[%clk 0:00:03.5]} 61... h4 {[%clk 0:00:13.3]} 62. Ra3+
{[%clk 0:00:04.1]} 62... Kf2 {[%clk 0:00:13.6]} 63. Rh3 {[%clk 0:00:03.2]} 63...
Rd5+ {[%clk 0:00:14.2]} 64. Kc3 {[%clk 0:00:03.3]} 64... Rh5 {[%clk 0:00:15.1]}
65. Nd4 {[%clk 0:00:03.3]} 65... Kg2 {[%clk 0:00:15]} 66. Rd3 {[%clk 0:00:04.2]}
66... h3 {[%clk 0:00:15.5]} 67. Nc2 {[%clk 0:00:03]} 67... h2 {[%clk 0:00:14.5]}
68. Rd2+ {[%clk 0:00:03.6]} 68... Kg3 {[%clk 0:00:14.9]} 69. Rd3+ {[%clk
0:00:03.7]} 69... Kf4 {[%clk 0:00:11.7]} 70. Rd4+ {[%clk 0:00:03.7]} 70... Ke5
{[%clk 0:00:11.2]} 71. Rd1 {[%clk 0:00:04.6]} 71... Rh3+ {[%clk 0:00:10.6]} 72.
Kb2 {[%clk 0:00:04]} 72... Ke4 {[%clk 0:00:08.6]} 73. Rh1 {[%clk 0:00:04.9]}
73... Kf3 {[%clk 0:00:08.8]} 74. Ne1+ {[%clk 0:00:05.1]} 74... Kf2 {[%clk
0:00:08.9]} 75. Kc2 {[%clk 0:00:06]} 75... Rh7 {[%clk 0:00:08.3]} 76. Rxh2+
{[%clk 0:00:05.4]} 76... Rxh2 {[%clk 0:00:06.6]} 77. Nd3+ {[%clk 0:00:06.3]}
77... Ke3+ {[%clk 0:00:07]} 78. Kc3 {[%clk 0:00:07.2]} 78... Rh5 {[%clk
0:00:07.1]} 79. Nb4 {[%clk 0:00:07.1]} 79... Rc5+ {[%clk 0:00:06.9]} 80. Kb3
{[%clk 0:00:07.4]} 80... Kd4 {[%clk 0:00:07.8]} 81. Nc2+ {[%clk 0:00:07.2]}
81... Kd3 {[%clk 0:00:07.8]} 82. Nb4+ {[%clk 0:00:07.6]} 82... Kd2 {[%clk
0:00:08.7]} 83. Na6 {[%clk 0:00:06.5]} 83... Rh5 {[%clk 0:00:09.3]} 84. Nb4
{[%clk 0:00:06.6]} 84... Ke3 {[%clk 0:00:09.7]} 85. Kc4 {[%clk 0:00:06.7]} 85...
Rh4+ {[%clk 0:00:10.3]} 86. Kc5 {[%clk 0:00:06.6]} 86... Ke4 {[%clk 0:00:10.3]}
87. Nc6 {[%clk 0:00:06.5]} 87... Rh5+ {[%clk 0:00:10.7]} 88. Kc4 {[%clk
0:00:06.5]} 88... Rh8 {[%clk 0:00:10.6]} 89. Kc5 {[%clk 0:00:05.6]} 89... Rh1
{[%clk 0:00:08.9]} 90. Kd6 {[%clk 0:00:06.5]} 90... Rd1+ {[%clk 0:00:09]} 91.
Kc5 {[%clk 0:00:06.5]} 91... Rd7 {[%clk 0:00:07]} 92. Nb4 {[%clk 0:00:04.7]}
92... Ke5 {[%clk 0:00:06.3]} 93. Kc6 {[%clk 0:00:04.5]} 93... Ke6 {[%clk
0:00:01.7]} 94. Na6 {[%clk 0:00:03.8]} 94... Rd6+ {[%clk 0:00:02.6]} 95. Kb5
{[%clk 0:00:04.1]} 95... Kd7 {[%clk 0:00:03.5]} 96. Nc5+ {[%clk 0:00:04]} 96...
Kc7 {[%clk 0:00:04.4]} 97. Kc4 {[%clk 0:00:04.7]} 97... Rh6 {[%clk 0:00:04.4]}
98. Ne4 {[%clk 0:00:05]} 98... Kc6 {[%clk 0:00:05.3]} 99. Kd4 {[%clk 0:00:05.3]}
99... Rh4 {[%clk 0:00:06.2]} 100. Ke5 {[%clk 0:00:06]} 100... Kd7 {[%clk
0:00:06]} 101. Nf6+ {[%clk 0:00:05.9]} 101... Ke7 {[%clk 0:00:06.3]} 102. Nd5+
{[%clk 0:00:06.3]} 102... Kf7 {[%clk 0:00:07.2]} 103. Kd6 {[%clk 0:00:06.1]}
103... Rh5 {[%clk 0:00:07.5]} 104. Kc6 {[%clk 0:00:05.9]} 104... Ke6 {[%clk
0:00:07.6]} 105. Nc7+ {[%clk 0:00:06.4]} 105... Ke5 {[%clk 0:00:07.5]} 106. Nb5
{[%clk 0:00:06.6]} 106... Rh1 {[%clk 0:00:08.2]} 107. Kd7 {[%clk 0:00:05]}
107... Rc1 {[%clk 0:00:07.7]} 108. Nc7 {[%clk 0:00:04.5]} 108... Rd1+ {[%clk
0:00:08.2]} 109. Ke7 {[%clk 0:00:04.5]} 109... Rd6 {[%clk 0:00:09.1]} 110. Ne8
{[%clk 0:00:04.1]} 110... Rc6 {[%clk 0:00:08]} 111. Kd7 {[%clk 0:00:05]} 111...
Rh6 {[%clk 0:00:07.6]} 112. Nc7 {[%clk 0:00:04.7]} 112... Rg6 {[%clk 0:00:06.8]}
113. Ne8 {[%clk 0:00:03.3]} 113... Rh6 {[%clk 0:00:03.2]} 114. Kc7 {[%clk
0:00:02.8]} 114... Rh7+ {[%clk 0:00:03.9]} 115. Kc6 {[%clk 0:00:03]} 115... Rh8
{[%clk 0:00:02.8]} 116. Nc7 {[%clk 0:00:02.5]} 116... Rd8 {[%clk 0:00:01.2]}
117. Kc5 {[%clk 0:00:02.1]} 117... Rd1 {[%clk 0:00:01.6]} 118. Kc6 {[%clk
0:00:03]} 118... Rd6+ {[%clk 0:00:01.2]} 119. Kc5 {[%clk 0:00:02.8]} 119... Rh6
{[%clk 0:00:02]} 120. Nb5 {[%clk 0:00:02.7]} 120... Rh8 {[%clk 0:00:02.8]} 121.
Kc4 {[%clk 0:00:02.8]} 121... Rc8+ {[%clk 0:00:03.7]} 122. Kb4 {[%clk
0:00:03.5]} 122... Kd5 {[%clk 0:00:04.5]} 123. Nc3+ {[%clk 0:00:03.4]} 123...
Kc6 {[%clk 0:00:05.4]} 124. Nb5 {[%clk 0:00:04.1]} 124... Rb8 {[%clk 0:00:05.7]}
0-1

[Event "Early-Titled-Tuesday-Blitz-June-18-2024"]
[Site "Chess.com"]
[Date "2024.06.18"]
[Round "3"]
[White "LileKoridze"]
[Black "stolencandy13"]
[Result "0-1"]
[WhiteElo "2432"]
[BlackElo "2634"]
[TimeControl "180+1"]
[EndTime "8:24:34 PDT"]
[Termination "stolencandy13 won by resignation"]

1. d4 {[%clk 0:03:00.9]} 1... Nf6 {[%clk 0:02:59.4]} 2. c4 {[%clk 0:03:00.9]}
2... e5 {[%clk 0:02:53.4]} 3. dxe5 {[%clk 0:03:00.8]} 3... Ng4 {[%clk
0:02:53.7]} 4. Bf4 {[%clk 0:02:59.5]} 4... Nc6 {[%clk 0:02:53.9]} 5. e3 {[%clk
0:02:59]} 5... Ngxe5 {[%clk 0:02:52.3]} 6. Nd2 {[%clk 0:02:58.5]} 6... d6 {[%clk
0:02:47.3]} 7. Ngf3 {[%clk 0:02:58.2]} 7... Bg4 {[%clk 0:02:43.8]} 8. Ke2 {[%clk
0:02:57.8]} 8... Be7 {[%clk 0:02:37.2]} 9. Ke1 {[%clk 0:02:54.1]} 9... O-O
{[%clk 0:02:35.3]} 10. Be2 {[%clk 0:02:53.7]} 10... Re8 {[%clk 0:02:33.2]} 11.
Kf1 {[%clk 0:02:53.4]} 11... Bf6 {[%clk 0:02:33]} 12. Rc1 {[%clk 0:02:52.6]}
12... Nb4 {[%clk 0:02:27.2]} 13. a3 {[%clk 0:02:51.9]} 13... Nbd3 {[%clk
0:02:25.1]} 14. Rb1 {[%clk 0:02:50.9]} 14... Nxf4 {[%clk 0:02:15.1]} 15. exf4
{[%clk 0:02:50]} 15... Nc6 {[%clk 0:02:14.2]} 16. h3 {[%clk 0:02:48.9]} 16...
Bf5 {[%clk 0:02:14.2]} 17. Rc1 {[%clk 0:02:46.9]} 17... Bxb2 {[%clk 0:02:12.5]}
18. Rc2 {[%clk 0:02:47.4]} 18... Bxc2 {[%clk 0:02:10.7]} 19. Qxc2 {[%clk
0:02:46.9]} 19... Bxa3 {[%clk 0:01:59.4]} 20. g3 {[%clk 0:02:46.6]} 20... Bc5
{[%clk 0:01:57.4]} 21. Kg2 {[%clk 0:02:46.4]} 21... Nd4 {[%clk 0:01:57.2]} 0-1